bitfinex/quotes_SOLUSD_20250403
["timestamp","ask_amount","ask_price","bid_price","bid_amount"]
[1743686158638,49.93675593,113.42,113.37,49.51027122]
[1743686158945,18.64964886,113.41,113.37,49.51027122]
[1743686159146,18.64964886,113.41,113.35,80.7]
[1743686159345,18.64964886,113.41,113.37,49.51027122]
[1743686160140,10.86648471,113.42,113.38,49.51027122]
[1743686160336,10.44,113.42,113.39,49.51027122]
[1743686160555,8.8175,113.41,113.4,49.51027122]
[1743686161047,8.8169,113.42,113.4,49.51027122]
[1743686161255,8.8169,113.42,113.41,49.51027122]
[1743686161559,8.8169,113.42,113.39,49.51027122]
[1743686162554,30.9201,113.43,113.39,49.51027122]
[1743686162767,0.063,113.43,113.42,49.51027122]
[1743686163657,0.063,113.43,113.4,49.51027122]
[1743686163841,0.063,113.43,113.42,49.51027122]
[1743686168857,0.063,113.43,113.41,26.0]
[1743686169052,0.063,113.43,113.42,49.51027122]
[1743686173355,0.063,113.43,113.38,80.7]
[1743686173560,0.063,113.43,113.42,49.51027122]
[1743686175766,0.063,113.43,113.42,32.98269557]
[1743686180267,0.063,113.43,113.42,32.98269557]
[1743686181076,0.063,113.43,113.38,80.7]
[1743686181468,0.063,113.43,113.39,32.98269557]
[1743686182189,33.04569557,113.43,113.38,113.68269557]
[1743686182487,0.063,113.43,113.39,32.98269557]
[1743686182688,0.063,113.43,113.38,80.7]
[1743686182889,0.063,113.43,113.39,32.98269557]
[1743686183202,30.919,113.43,113.39,32.98269557]
[1743686183372,30.919,113.43,113.38,80.7]
[1743686183571,30.919,113.43,113.39,32.98269557]
[1743686184292,30.919,113.43,113.4,32.98269557]
[1743686184470,8.879,113.43,113.42,32.98269557]
[1743686185081,30.919,113.43,113.41,32.98269557]
[1743686185307,22.103,113.43,113.4,32.98269557]
[1743686185976,22.103,113.43,113.39,32.98269557]
[1743686186590,22.103,113.43,113.4,32.98269557]
[1743686187296,22.103,113.43,113.38,80.7]
[1743686187607,55.08569557,113.43,113.38,113.68269557]
[1743686187893,55.08569557,113.43,113.38,80.7]
[1743686188084,32.98269557,113.42,113.38,80.7]
[1743686188471,22.103,113.43,113.33,410.88]
[1743686188472,39.06589557,113.4,113.33,410.88]
[1743686188677,52.05882914,113.39,113.31,80.73]
[1743686188888,52.05882914,113.39,113.33,32.98269557]
[1743686189088,32.98269557,113.38,113.33,32.98269557]
[1743686193285,30.919,113.43,113.41,32.98269557]
[1743686194300,8.879,113.43,113.42,32.98269557]
[1743686195309,0.063,113.43,113.42,32.98269557]
[1743686195598,0.063,113.43,113.36,87.1456]
[1743686195899,0.063,113.43,113.38,32.98269557]
[1743686196099,0.063,113.43,113.41,32.98269557]
[1743686197095,0.063,113.43,113.4,32.98269557]
[1743686197489,0.063,113.43,113.42,32.98269557]
[1743686197674,0.063,113.43,113.41,32.98269557]
[1743686197879,0.063,113.43,113.4,32.98269557]
[1743686198681,0.063,113.43,113.42,32.98269557]
[1743686200002,0.063,113.43,113.4,80.7]
[1743686200322,58.68482914,113.43,113.37,32.98269557]
[1743686200605,10.38,113.42,113.38,32.98269557]
[1743686200801,10.38,113.42,113.37,32.98269557]
[1743686201304,30.8614,113.41,113.37,32.98269557]
[1743686201685,30.8614,113.41,113.38,32.98269557]
[1743686202396,30.8614,113.41,113.37,32.98269557]
[1743686202596,30.8614,113.41,113.36,32.98269557]
[1743686202791,30.8614,113.41,113.37,32.98269557]
[1743686203686,52.05882914,113.4,113.35,32.98269557]
[1743686203893,19.07613357,113.38,113.32,410.72]
[1743686204082,19.07613357,113.38,113.31,0.03]
[1743686204288,19.07613357,113.38,113.33,32.98269557]
[1743686204611,0.42648471,113.38,113.33,32.98269557]
[1743686204808,0.42648471,113.38,113.34,32.98269557]
[1743686205488,0.42648471,113.38,113.32,32.98269557]
[1743686205489,30.875,113.36,113.32,32.98269557]
[1743686205902,8.8214,113.36,113.33,32.98269557]
[1743686206784,8.8214,113.36,113.32,32.98269557]
[1743686206985,47.99909557,113.36,113.31,33.01269557]
[1743686207188,70.05269557,113.36,113.31,33.01269557]
[1743686207407,19.07613357,113.35,113.31,33.01269557]
[1743686207591,8.823,113.34,113.31,0.03]
[1743686207789,30.8805,113.34,113.31,0.03]
[1743686214095,8.8167,113.42,113.38,32.98269557]
[1743686214329,8.8167,113.42,113.39,32.98269557]
[1743686214528,8.8167,113.42,113.4,32.98269557]
[1743686215608,22.1042,113.43,113.4,32.98269557]
[1743686215816,22.1042,113.43,113.39,32.98269557]
[1743686216918,22.1042,113.43,113.36,8.8207]
[1743686217114,55.08689557,113.43,113.38,32.98269557]
[1743686217316,52.05882914,113.42,113.37,32.98269557]
[1743686217502,55.08689557,113.43,113.38,32.98269557]
[1743686218512,19.07613357,113.42,113.37,32.98269557]
[1743686218715,30.8695,113.38,113.34,32.98269557]
[1743686219015,8.8195,113.39,113.36,32.98269557]
[1743686219219,8.8195,113.39,113.37,32.98269557]
[1743686219423,8.8195,113.39,113.38,32.98269557]
[1743686220230,19.1787,113.4,113.38,32.98269557]
[1743686220737,19.1787,113.4,113.36,32.98269557]
[1743686221400,19.1787,113.4,113.38,32.98269557]
[1743686221803,8.8187,113.4,113.38,32.98269557]
[1743686222008,8.8187,113.4,113.39,32.98269557]
[1743686222406,8.879,113.43,113.39,32.98269557]
[1743686222610,30.919,113.43,113.39,32.98269557]
[1743686224226,63.90169557,113.43,113.38,32.98269557]
[1743686224707,30.919,113.43,113.38,32.98269557]
[1743686225200,63.90169557,113.43,113.38,32.98269557]
[1743686225405,107.98169557,113.43,113.38,32.98269557]
[1743686225916,52.05882914,113.42,113.37,32.98269557]
[1743686226109,52.05882914,113.4,113.32,8.8245]
[1743686226424,30.8668,113.39,113.32,8.8245]
[1743686226608,30.8668,113.39,113.35,32.98269557]
[1743686227543,30.8668,113.39,113.36,32.98269557]
[1743686229227,30.8668,113.39,113.35,32.98269557]
[1743686230544,30.8668,113.39,113.32,8.8243]
[1743686230846,0.063,113.43,113.38,32.98269557]
[1743686231139,0.063,113.43,113.39,32.98269557]
[1743686231343,8.8794,113.43,113.41,32.98269557]
[1743686231519,0.063,113.43,113.42,32.98269557]
[1743686233242,0.063,113.43,113.41,32.98269557]
[1743686234045,0.063,113.43,113.37,1.6647]
[1743686234256,0.063,113.43,113.4,32.98269557]
[1743686234954,0.063,113.43,113.42,32.98269557]
[1743686235959,0.063,113.43,113.41,32.98269557]
[1743686236148,0.063,113.43,113.37,1.6647]
[1743686236456,0.063,113.43,113.41,32.98269557]
[1743686236628,0.063,113.43,113.42,32.98269557]
[1743686238527,0.063,113.43,113.42,113.68269557]
[1743686239454,0.063,113.43,113.42,132.75882914]
[1743686239757,0.063,113.43,113.42,122.49939557]
[1743686241245,0.063,113.43,113.42,113.68269557]
[1743686242256,0.03,113.46,113.42,148.15212914]
[1743686242425,8.8091,113.52,113.46,0.14216157]
[1743686242627,6.6016,113.54,113.51,32.98269557]
[1743686242838,6.6016,113.54,113.52,32.98269557]
[1743686243244,0.063,113.55,113.53,32.98269557]
[1743686243543,0.063,113.55,113.54,32.98269557]
[1743686244132,0.063,113.55,113.54,74.77279114]
[1743686244346,0.063,113.55,113.54,65.96539114]
[1743686244546,0.063,113.55,113.54,32.98269557]
[1743686248854,0.063,113.55,113.54,65.96539114]
[1743686249247,0.063,113.55,113.54,174.54892471]
[1743686250237,0.063,113.55,113.54,165.74152471]
[1743686250443,0.063,113.55,113.54,132.75882914]
[1743686250747,0.063,113.55,113.54,165.59936314]
[1743686250958,0.063,113.55,113.54,113.68269557]
[1743686252951,0.03,113.58,113.57,26.0]
[1743686253154,0.03,113.58,113.57,139.68269557]
[1743686254648,0.03,113.58,113.57,113.68269557]
[1743686255434,0.03,113.58,113.56,10.3]
[1743686255634,0.03,113.58,113.57,32.98269557]
[1743686257155,0.03,113.58,113.56,32.98269557]
[1743686257736,0.03,113.58,113.57,32.98269557]
[1743686260034,0.03,113.58,113.57,141.56392914]
[1743686260236,0.03,113.58,113.57,132.75882914]
[1743686261262,0.03,113.58,113.57,141.56392914]
[1743686261754,0.03,113.61,113.6,26.0]
[1743686262061,0.03,113.61,113.6,139.68269557]
[1743686262635,0.03,113.61,113.6,167.56162914]
[1743686262840,0.03,113.61,113.6,200.54432471]
[1743686263138,0.03,113.61,113.6,139.68269557]
[1743686263339,0.03,113.61,113.6,167.56162914]
[1743686263758,0.03,113.61,113.6,200.54432471]
[1743686263949,0.03,113.61,113.6,167.56162914]
[1743686264949,0.03,113.61,113.6,139.68269557]
[1743686265645,0.03,113.61,113.6,148.48549557]
[1743686265839,0.03,113.61,113.6,139.68269557]
[1743686266455,0.03,113.61,113.6,58.98269557]
[1743686266759,0.03,113.61,113.6,32.98269557]
[1743686269052,0.03,113.61,113.6,132.75882914]
[1743686269648,0.03,113.61,113.6,113.68269557]
[1743686270064,0.03,113.61,113.6,32.98269557]
[1743686272663,0.03,113.61,113.6,60.86162914]
[1743686272869,0.03,113.63,113.6,93.84432471]
[1743686273071,0.03,113.63,113.62,32.98269557]
[1743686279073,0.03,113.63,113.6,32.98269557]
[1743686279373,0.03,113.63,113.61,32.98269557]
[1743686279674,0.03,113.63,113.6,32.98269557]
[1743686279854,0.03,113.63,113.61,32.98269557]
[1743686280167,0.03,113.63,113.6,32.98269557]
[1743686280554,0.03,113.63,113.58,80.7]
[1743686280755,6.1117,113.61,113.57,32.98269557]
[1743686281258,6.1117,113.61,113.59,32.98269557]
[1743686281467,6.1117,113.61,113.58,33.04569557]
[1743686281650,6.1117,113.61,113.58,0.063]
[1743686281854,6.1117,113.61,113.58,33.04569557]
[1743686282071,6.1117,113.61,113.58,0.063]
[1743686282271,0.14216157,113.6,113.58,0.063]
[1743686282472,39.09439557,113.61,113.58,33.04569557]
[1743686282473,6.1117,113.61,113.58,33.04569557]
[1743686282778,8.8028,113.6,113.58,33.04569557]
[1743686282965,8.8028,113.6,113.59,32.98269557]
[1743686283175,6.1117,113.61,113.59,32.98269557]
[1743686283361,10.3419,113.62,113.6,32.98269557]
[1743686283879,43.32459557,113.62,113.58,33.04569557]
[1743686284075,65.32769557,113.62,113.58,33.04569557]
[1743686284279,65.32769557,113.62,113.58,0.063]
[1743686284776,10.3419,113.62,113.6,32.98269557]
[1743686285389,10.3419,113.62,113.59,32.98269557]
[1743686285579,10.3419,113.62,113.58,33.04569557]
[1743686285876,32.345,113.62,113.58,33.04569557]
[1743686286256,32.98269557,113.61,113.58,0.063]
[1743686286576,39.26079557,113.59,113.54,0.063]
[1743686286760,30.8152,113.58,113.54,33.04569557]
[1743686287987,30.8152,113.58,113.55,32.98269557]
[1743686288287,26.0,113.55,113.54,0.063]
[1743686288881,103.49402914,113.55,113.54,0.0001]
[1743686289078,19.07613357,113.54,113.48,32.98269557]
[1743686289281,32.98269557,113.53,113.48,32.98269557]
[1743686290064,52.05882914,113.52,113.47,33.04569557]
[1743686290266,52.05882914,113.52,113.47,0.063]
[1743686290571,32.98269557,113.51,113.47,0.063]
[1743686290775,8.8097,113.51,113.47,0.063]
[1743686291186,130.6954,113.55,113.49,32.98269557]
[1743686291187,8.8082,113.53,113.49,32.98269557]
[1743686291392,8.8074,113.54,113.51,32.98269557]
[1743686291593,8.8074,113.54,113.47,0.063]
[1743686291773,8.8074,113.54,113.49,32.98269557]
[1743686291774,19.07613357,113.53,113.49,32.98269557]
[1743686292589,52.05882914,113.53,113.47,0.063]
[1743686292879,8.809,113.52,113.48,32.98269557]
[1743686293782,30.8315,113.52,113.48,32.98269557]
[1743686294087,19.07613357,113.51,113.47,0.063]
[1743686294267,52.05882914,113.51,113.47,0.063]
[1743686294472,6.1505,113.49,113.47,0.063]
[1743686294968,14.962,113.49,113.47,0.063]
[1743686295276,8.8114,113.49,113.47,0.063]
[1743686295881,19.07613357,113.48,113.47,0.063]
[1743686296288,52.05882914,113.48,113.47,0.063]
[1743686296570,52.05882914,113.48,113.47,0.0001]
[1743686296796,58.13772914,113.48,113.47,0.0001]
[1743686296993,66.94982914,113.48,113.47,0.0001]
[1743686297500,33.96713357,113.48,113.47,0.0001]
[1743686297927,66.94982914,113.48,113.47,0.0001]
[1743686300075,77.20982914,113.48,113.47,0.0001]
[1743686300877,44.22713357,113.48,113.47,0.0001]
[1743686301086,77.20982914,113.48,113.47,0.0001]
[1743686301785,23.6863,113.5,113.47,0.0001]
[1743686302101,8.8113,113.49,113.47,0.0001]
[1743686302407,52.05882914,113.48,113.47,0.0001]
[1743686302607,19.07613357,113.48,113.47,0.0001]
[1743686303302,8.8113,113.49,113.47,0.0001]
[1743686303604,8.8108,113.5,113.48,32.98269557]
[1743686303795,8.8108,113.5,113.47,32.98279557]
[1743686305582,8.8108,113.5,113.48,32.98269557]
[1743686306397,8.8108,113.5,113.47,0.0001]
[1743686306698,8.8108,113.5,113.48,32.98269557]
[1743686306895,8.8108,113.5,113.47,32.98279557]
[1743686307101,8.8108,113.5,113.47,0.0001]
[1743686307299,8.8108,113.5,113.48,32.98269557]
[1743686307803,30.8323,113.52,113.48,32.98269557]
[1743686308186,63.81499557,113.52,113.47,32.98279557]
[1743686308704,52.05882914,113.51,113.47,0.0001]
[1743686309299,19.07613357,113.51,113.47,0.0001]
[1743686309701,8.809,113.52,113.48,32.98269557]
[1743686309893,8.809,113.52,113.49,32.98269557]
[1743686310199,8.809,113.52,113.48,32.98269557]
[1743686310400,19.07613357,113.51,113.47,0.0001]
[1743686310603,52.05882914,113.51,113.47,0.0001]
[1743686311407,19.07613357,113.51,113.47,32.98279557]
[1743686311799,8.8105,113.5,113.47,32.98279557]
[1743686312000,8.8105,113.5,113.48,32.98269557]
[1743686313299,8.8105,113.5,113.47,32.98279557]
[1743686313902,30.8353,113.51,113.47,32.98279557]
[1743686314099,8.8097,113.51,113.48,32.98269557]
[1743686315287,30.8341,113.51,113.48,32.98269557]
[1743686315489,30.8341,113.51,113.47,32.98279557]
[1743686315702,30.8341,113.51,113.47,20.6047207]
[1743686316096,8.8097,113.51,113.47,20.6047207]
[1743686316303,19.0494,113.52,113.49,20.6046207]
[1743686316684,41.0719,113.52,113.49,20.6046207]
[1743686316883,0.063,113.5,113.48,20.6046207]
[1743686317212,0.063,113.5,113.47,0.0001]
[1743686317391,19.07613357,113.49,113.47,0.0001]
[1743686317903,0.063,113.5,113.47,0.0001]
[1743686318209,8.8113,113.49,113.47,0.0001]
[1743686319417,0.063,113.5,113.48,32.97705833]
[1743686319582,0.063,113.5,113.49,32.97705833]
[1743686319787,8.8735,113.5,113.49,32.97705833]
[1743686319987,0.063,113.5,113.49,32.97705833]
[1743686320209,0.063,113.5,113.48,32.97705833]
[1743686320391,0.063,113.5,113.47,32.97715833]
[1743686320796,0.063,113.5,113.48,32.97705833]
[1743686321193,0.063,113.5,113.47,32.97715833]
[1743686321400,0.063,113.5,113.47,0.0001]
[1743686321599,0.063,113.5,113.48,32.97705833]
[1743686322017,0.063,113.5,113.49,32.97705833]
[1743686322508,0.063,113.5,113.49,41.78835833]
[1743686323689,8.8062,113.56,113.49,63.81665833]
[1743686323890,8.8062,113.56,113.54,32.97705833]
[1743686324100,15.4264,113.57,113.54,32.97705833]
[1743686324420,37.4392,113.57,113.53,32.97705833]
[1743686325412,70.41625833,113.57,113.52,32.97705833]
[1743686325598,37.4392,113.57,113.53,32.97705833]
[1743686326116,15.4264,113.57,113.53,32.97705833]
[1743686326299,8.8055,113.57,113.55,32.97705833]
[1743686326496,8.8047,113.58,113.56,32.97705833]
[1743686327015,30.8156,113.58,113.54,32.97705833]
[1743686329210,30.8156,113.58,113.51,19.0293]
[1743686329516,8.8028,113.6,113.57,32.97705833]
[1743686329906,0.03,113.58,113.57,32.97705833]
[1743686330710,0.03,113.58,113.57,41.78215833]
[1743686331995,0.03,113.58,113.57,141.5582919]
[1743686332198,0.03,113.61,113.57,141.5582919]
[1743686332521,0.03,113.61,113.6,32.97705833]
[1743686335901,0.03,113.61,113.6,65.95411666]
[1743686336402,0.03,113.61,113.6,32.97705833]
[1743686337203,0.03,113.63,113.62,26.0]
[1743686337414,0.03,113.63,113.62,79.6669919]
[1743686337622,0.03,113.63,113.62,160.3669919]
[1743686337804,0.03,113.64,113.63,20.53303337]
[1743686339019,0.03,113.64,113.63,29.33343337]
[1743686339217,0.03,113.64,113.63,48.40956694]
[1743686339430,0.03,113.67,113.66,26.0]
[1743686339625,0.03,113.67,113.66,46.53303337]
[1743686339923,0.03,113.67,113.66,58.83547623]
[1743686341902,0.03,113.67,113.66,32.83547623]
[1743686344716,0.03,113.67,113.64,32.83547623]
[1743686345414,6.1625,113.67,113.63,32.83547623]
[1743686345809,6.1625,113.67,113.65,32.83547623]
[1743686346042,0.03,113.67,113.66,32.83547623]
[1743686347552,0.03,113.67,113.66,113.96196094]
[1743686347721,0.03,113.67,113.66,132.6116098]
[1743686348121,0.03,113.67,113.66,141.4097098]
[1743686348422,0.03,113.67,113.66,132.6116098]
[1743686348624,0.03,113.67,113.66,113.53547623]
[1743686349839,0.03,113.67,113.66,132.6116098]
[1743686350341,0.03,113.67,113.66,113.53547623]
[1743686351242,0.03,113.7,113.69,26.0]
[1743686351538,0.03,113.7,113.69,77.9116098]
[1743686352946,0.03,113.7,113.69,167.3774098]
[1743686353961,0.03,113.73,113.72,26.14216157]
[1743686354167,0.03,113.73,113.72,58.83547623]
[1743686354331,0.03,113.73,113.72,77.9116098]
[1743686355358,0.03,113.74,113.73,19.07613357]
[1743686355643,0.03,113.77,113.76,26.0]
[1743686355826,0.03,113.77,113.76,58.83547623]
[1743686356027,0.03,113.77,113.76,167.4020098]
[1743686356234,0.03,113.79,113.77,19.07613357]
[1743686356540,8.7838,113.85,113.79,19.07613357]
[1743686356760,8.7838,113.85,113.79,109.95613357]
[1743686356928,8.7838,113.85,113.79,90.88]
[1743686357119,8.7838,113.85,113.83,32.83547623]
[1743686357323,8.7838,113.85,113.84,32.83547623]
[1743686357561,8.7838,113.85,113.82,32.83547623]
[1743686357866,25.13614886,113.88,113.83,32.83547623]
[1743686357867,30.741,113.86,113.83,32.83547623]
[1743686358024,8.7827,113.86,113.84,32.83547623]
[1743686358456,15.2681,113.88,113.84,32.83547623]
[1743686358633,48.10357623,113.88,113.84,32.83547623]
[1743686358834,37.221,113.88,113.84,32.83547623]
[1743686359124,15.2681,113.88,113.85,32.83547623]
[1743686359436,15.2681,113.88,113.83,18.79181043]
[1743686359631,15.2681,113.88,113.85,32.83547623]
[1743686359832,15.2681,113.88,113.84,32.83547623]
[1743686359833,48.10357623,113.88,113.84,32.83547623]
[1743686360135,70.05647623,113.88,113.83,32.83547623]
[1743686360337,15.2681,113.88,113.82,80.7]
[1743686360550,70.05647623,113.88,113.82,80.7]
[1743686360858,30.7345,113.88,113.85,32.83547623]
[1743686361054,32.83547623,113.86,113.79,10.18]
[1743686361236,32.83547623,113.85,113.81,32.83547623]
[1743686361425,32.83547623,113.85,113.8,32.83547623]
[1743686361632,32.83547623,113.85,113.81,32.83547623]
[1743686361842,32.83547623,113.85,113.78,80.7]
[1743686361843,31.02372314,113.86,113.82,32.83547623]
[1743686362444,30.7394,113.86,113.83,32.83547623]
[1743686363140,1.5306,113.9,113.85,32.83547623]
[1743686363447,30.7314,113.89,113.85,32.83547623]
[1743686363650,32.83547623,113.87,113.8,90.86]
[1743686363832,73.73217623,113.87,113.82,32.83547623]
[1743686364429,32.83547623,113.86,113.81,32.83547623]
[1743686365145,38.89707623,113.85,113.8,32.83547623]
[1743686365864,30.7448,113.84,113.8,32.83547623]
[1743686366061,30.7448,113.84,113.78,80.7]
[1743686366359,8.7842,113.84,113.82,26.0]
[1743686366560,8.7842,113.84,113.83,32.83547623]
[1743686366730,28.3719,113.88,113.83,32.83547623]
[1743686366933,8.7819,113.87,113.86,32.83547623]
[1743686367168,8.7814,113.88,113.86,32.83547623]
[1743686367541,8.7814,113.88,113.85,32.83547623]
[1743686367742,63.56977623,113.88,113.82,26.0]
[1743686367949,63.56977623,113.88,113.83,32.83547623]
[1743686368145,0.03,113.86,113.84,32.83547623]
[1743686368344,6.1484,113.85,113.81,32.83547623]
[1743686368741,6.1484,113.85,113.82,32.83547623]
[1743686368961,6.1484,113.85,113.81,32.83547623]
[1743686369562,38.98387623,113.85,113.8,58.83547623]
[1743686369869,38.98387623,113.85,113.79,0.063]
[1743686369870,6.1484,113.85,113.81,32.83547623]
[1743686370046,6.1484,113.85,113.79,0.063]
[1743686370047,8.7842,113.84,113.83,32.83547623]
[1743686370248,8.7842,113.84,113.82,32.83547623]
[1743686370457,30.7448,113.84,113.82,32.83547623]
[1743686370663,8.7842,113.84,113.83,32.83547623]
[1743686371038,8.8133,113.86,113.83,32.83547623]
[1743686371364,8.8133,113.86,113.85,32.83547623]
[1743686371535,8.8133,113.86,113.84,32.83547623]
[1743686371939,0.03,113.86,113.84,32.83547623]
[1743686372262,0.03,113.86,113.85,32.83547623]
[1743686372467,0.03,113.86,113.83,26.0]
[1743686372672,0.03,113.86,113.84,32.83547623]
[1743686372843,0.03,113.86,113.85,32.83547623]
[1743686373666,0.03,113.86,113.83,26.0]
[1743686373970,0.03,113.86,113.85,32.83547623]
[1743686374140,0.03,113.86,113.8,80.7]
[1743686374459,32.86547623,113.86,113.81,32.83547623]
[1743686374662,0.03,113.86,113.82,32.83547623]
[1743686375435,32.86547623,113.86,113.81,32.83547623]
[1743686375740,0.03,113.86,113.82,32.83547623]
[1743686376274,30.7694,113.86,113.82,32.83547623]
[1743686376965,51.9116098,113.85,113.79,0.063]
[1743686377283,32.83547623,113.83,113.79,0.063]
[1743686377768,32.83547623,113.84,113.79,32.89847623]
[1743686378371,32.83547623,113.82,113.79,0.063]
[1743686378578,37.1203,113.83,113.79,0.063]
[1743686378941,69.95577623,113.83,113.79,0.063]
[1743686379469,37.1203,113.83,113.79,32.89847623]
[1743686379775,69.95577623,113.83,113.79,0.063]
[1743686380072,69.95577623,113.83,113.81,0.063]
[1743686380239,113.88087623,113.83,113.79,0.063]
[1743686380440,32.83547623,113.82,113.79,0.063]
[1743686381573,32.9776378,113.8,113.79,0.0001]
[1743686381771,0.14216157,113.79,113.72,4.35259205]
[1743686381948,32.83547623,113.77,113.72,4.35259205]
[1743686382145,32.83547623,113.77,113.72,37.18806828]
[1743686382342,32.83547623,113.77,113.75,32.83547623]
[1743686382343,8.7896,113.77,113.75,32.83547623]
[1743686382649,8.7892,113.78,113.76,32.83547623]
[1743686383047,8.7892,113.78,113.75,58.83547623]
[1743686383248,8.7892,113.78,113.74,32.83547623]
[1743686383445,32.83547623,113.77,113.71,80.7]
[1743686383666,32.83547623,113.77,113.72,32.83547623]
[1743686384281,76.223,113.78,113.72,32.83547623]
[1743686384457,32.83547623,113.77,113.72,32.83547623]
[1743686384977,39.24167623,113.77,113.72,32.83547623]
[1743686386973,30.7664,113.76,113.72,32.83547623]
[1743686387673,63.60187623,113.76,113.71,32.83547623]
[1743686388872,30.7664,113.76,113.71,32.83547623]
[1743686389170,63.60187623,113.76,113.71,32.83547623]
[1743686392051,63.60187623,113.76,113.71,32.89847623]
[1743686392256,63.60187623,113.76,113.71,0.063]
[1743686392459,63.60187623,113.76,113.71,32.89847623]
[1743686393067,30.7664,113.76,113.73,32.83547623]
[1743686393362,8.7904,113.76,113.73,32.83547623]
[1743686393557,8.79,113.77,113.74,32.83547623]
[1743686393874,8.79,113.77,113.74,20.50317594]
[1743686394662,30.7641,113.77,113.73,20.50317594]
[1743686394855,20.50317594,113.76,113.71,20.56617594]
[1743686395061,8.7919,113.74,113.71,0.063]
[1743686395553,30.7718,113.74,113.71,0.063]
[1743686396261,63.60373028,113.74,113.71,0.063]
[1743686396463,32.83193028,113.73,113.71,0.063]
[1743686397169,8.7935,113.72,113.71,0.063]
[1743686397569,8.7912,113.75,113.71,32.89493028]
[1743686397776,8.7912,113.75,113.73,32.83193028]
[1743686398080,8.7912,113.75,113.72,58.83193028]
[1743686398983,8.7912,113.75,113.72,26.0]
[1743686399156,30.7692,113.75,113.72,26.0]
[1743686399356,30.7692,113.75,113.71,32.89493028]
[1743686400361,32.83193028,113.74,113.71,0.063]
[1743686400671,63.60113028,113.75,113.71,0.063]
[1743686400865,32.83193028,113.74,113.71,0.063]
[1743686401380,8.7927,113.73,113.71,0.063]
[1743686404275,41.62463028,113.73,113.71,0.063]
[1743686404477,32.83193028,113.72,113.71,0.063]
[1743686404672,39.45749185,113.71,113.7,0.063]
[1743686404876,32.83193028,113.69,113.67,0.063]
[1743686405192,32.83193028,113.7,113.67,0.063]
[1743686405566,8.7958,113.69,113.67,0.063]
[1743686405784,32.83193028,113.68,113.67,0.063]
[1743686405979,51.90806385,113.68,113.64,0.063]
[1743686406170,51.90806385,113.65,113.64,0.063]
[1743686406775,51.90806385,113.65,113.64,0.0001]
[1743686406977,39.09123028,113.65,113.64,0.0001]
[1743686407195,32.83193028,113.67,113.64,0.0001]
[1743686407503,41.63083028,113.65,113.64,0.0001]
[1743686408893,8.7989,113.65,113.64,0.0001]
[1743686409070,41.63083028,113.65,113.64,0.0001]
[1743686409978,45.93191903,113.65,113.64,0.0001]
[1743686410398,65.0080526,113.65,113.64,0.0001]
[1743686413382,71.4273526,113.65,113.64,0.0001]
[1743686413791,72.9976526,113.65,113.64,0.0001]
[1743686414996,72.9976526,113.65,113.59,0.063]
[1743686414997,0.14216157,113.61,113.59,0.063]
[1743686415214,32.83193028,113.6,113.59,0.063]
[1743686415782,41.63473028,113.6,113.59,0.063]
[1743686416495,8.8028,113.6,113.59,0.063]
[1743686416695,8.7997,113.64,113.62,26.0]
[1743686416897,8.7973,113.67,113.63,32.83193028]
[1743686417210,8.7973,113.67,113.64,32.83193028]
[1743686417504,30.7907,113.67,113.63,32.83193028]
[1743686417682,30.7907,113.67,113.63,20.54576852]
[1743686418280,51.33646852,113.67,113.61,20.54576852]
[1743686418607,20.54576852,113.65,113.6,101.24576852]
[1743686418907,51.33646852,113.67,113.62,20.54576852]
[1743686419802,32.87860979,113.66,113.61,32.87860979]
[1743686420179,63.66930979,113.67,113.62,32.87860979]
[1743686420381,8.7973,113.67,113.65,32.87860979]
[1743686421382,8.7973,113.67,113.64,32.87860979]
[1743686421603,8.7973,113.67,113.64,58.87860979]
[1743686421783,8.7966,113.68,113.64,58.87860979]
[1743686422206,30.7881,113.68,113.64,58.87860979]
[1743686422803,63.66670979,113.68,113.63,32.87860979]